bitfinex/quotes_SOLUSD_20260203
["timestamp","ask_amount","ask_price","bid_price","bid_amount"]
[1770141003114,2.74866779,99.295,99.24,6.51499547]
[1770141003289,2.74866779,99.289,99.238,2.81781098]
[1770141003804,35.24814694,99.296,99.26,6.51499547]
[1770141003805,10.07089912,99.296,99.26,6.51499547]
[1770141004313,25.17443679,99.308,99.252,10.07534636]
[1770141004314,3.08853474,99.329,99.281,2.81781098]
[1770141004495,3.08853474,99.329,99.3,6.51499547]
[1770141004694,3.08853474,99.329,99.272,0.14216157]
[1770141004695,3.08853474,99.319,99.255,10.07504977]
[1770141004899,3.08853474,99.319,99.26,16.58946868]
[1770141005102,3.08853474,99.319,99.27,6.51499547]
[1770141005305,3.08853474,99.319,99.28,6.51499547]
[1770141005595,3.08853474,99.319,99.229,40.31055472]
[1770141005596,3.08853474,99.309,99.241,0.06112688]
[1770141005904,3.08853474,99.309,99.261,10.07445018]
[1770141006118,3.08853474,99.307,99.262,10.07434869]
[1770141006292,3.08853474,99.307,99.263,0.0813831]
[1770141006498,3.08853474,99.307,99.256,10.07487064]
[1770141007009,3.08853474,99.307,99.261,10.07444084]
[1770141007313,3.08853474,99.307,99.254,10.07510334]
[1770141007521,3.08853474,99.307,99.251,0.0813831]
[1770141008193,3.08853474,99.307,99.26,6.51499547]
[1770141008598,3.08853474,99.307,99.261,0.12120022]
[1770141009817,28.0,99.337,99.28,6.51499547]
[1770141009818,3.08853474,99.319,99.28,6.51499547]
[1770141010112,3.08853474,99.348,99.291,0.14076643]
[1770141010321,3.08853474,99.329,99.27,6.51499547]
[1770141010532,3.08853474,99.329,99.28,10.07245852]
[1770141010704,3.08853474,99.329,99.285,10.07200525]
[1770141010904,3.08853474,99.329,99.276,10.07288875]
[1770141011124,3.08853474,99.329,99.271,0.10588422]
[1770141011426,3.08853474,99.329,99.284,10.07211402]
[1770141011598,3.08853474,99.329,99.271,0.10588422]
[1770141012134,3.08853474,99.329,99.283,10.07217224]
[1770141012424,3.08853474,99.327,99.271,35.25702369]
[1770141013009,3.08853474,99.339,99.291,0.03731715]
[1770141013518,3.08853474,99.339,99.29,6.51499547]
[1770141014303,3.08853474,99.339,99.3,6.51499547]
[1770141014514,3.08853474,99.339,99.272,0.14216157]
[1770141014515,0.2,99.36,99.32,6.51499547]
[1770141014832,0.2,99.36,99.34,6.51499547]
[1770141015006,0.2,99.36,99.33,6.51499547]
[1770141015206,3.08853474,99.359,99.31,6.51499547]
[1770141015598,3.08853474,99.359,99.301,35.24637214]
[1770141015800,3.08853474,99.339,99.301,10.07039204]
[1770141016228,3.08853474,99.359,99.301,35.24637214]
[1770141016407,3.08853474,99.358,99.301,35.24637214]
[1770141016608,3.08853474,99.349,99.301,10.07039204]
[1770141017421,6.71499547,99.36,99.301,10.07039204]
[1770141017422,0.2,99.36,99.32,6.51499547]
[1770141017610,3.08853474,99.359,99.31,6.51499547]
[1770141017810,3.08853474,99.359,99.301,35.24637214]
[1770141018739,3.08853474,99.359,99.301,10.07039204]
[1770141019028,3.08853474,99.349,99.301,10.07039204]
[1770141019205,3.08853474,99.349,99.31,6.51499547]
[1770141019409,3.08853474,99.349,99.301,35.24637214]
[1770141019620,3.08853474,99.349,99.301,34.24637214]
[1770141019816,3.08853474,99.349,99.31,6.51499547]
[1770141020218,3.08853474,99.359,99.31,6.51499547]
[1770141020722,3.08853474,99.359,99.311,35.24282304]
[1770141021108,3.08853474,99.359,99.32,6.51499547]
[1770141021332,0.2,99.36,99.33,6.51499547]
[1770141022437,0.2,99.36,99.312,0.14216157]
[1770141022607,3.08853474,99.4,99.35,6.51499547]
[1770141022814,3.08853474,99.4,99.37,6.51499547]
[1770141023119,3.08853474,99.4,99.36,6.51499547]
[1770141023319,3.08853474,99.4,99.353,0.14216157]
[1770141023524,3.08853474,99.399,99.352,10.06522264]
[1770141024919,3.08853474,99.397,99.341,10.06633716]
[1770141025324,3.08853474,99.389,99.28,46.8047006]
[1770141025521,3.08853474,99.369,99.325,10.06793339]
[1770141025839,3.08853474,99.371,99.341,10.06633716]
[1770141026135,3.08853474,99.359,99.317,25.17185708]
[1770141026716,3.08853474,99.397,99.341,35.23218006]
[1770141027020,3.08853474,99.428,99.38,6.51499547]
[1770141027225,3.08853474,99.428,99.39,6.51499547]
[1770141028435,3.08853474,99.452,99.41,6.51499547]
[1770141028937,3.08853474,99.449,99.401,10.06026096]
[1770141029116,3.08853474,99.439,99.401,10.06026096]
[1770141029517,3.08853474,99.439,99.401,35.21091336]
[1770141029924,3.08853474,99.439,99.41,6.51499547]
[1770141030245,3.08853474,99.473,99.43,6.51499547]
[1770141030552,3.08853474,99.459,99.401,35.21091336]
[1770141030841,3.08853474,99.439,99.401,10.06026096]
[1770141031050,6.51499547,99.44,99.38,6.51499547]
[1770141031051,3.08853474,99.429,99.387,35.21587329]
[1770141031419,3.08853474,99.449,99.39,6.51499547]
[1770141031625,3.08853474,99.449,99.4,6.51499547]
[1770141032039,3.08853474,99.449,99.39,6.51499547]
[1770141033145,3.08853474,99.449,99.393,0.14216157]
[1770141033351,3.08853474,99.449,99.392,35.21410173]
[1770141033850,3.08853474,99.449,99.4,6.51499547]
[1770141034338,3.08853474,99.449,99.393,0.14216157]
[1770141035039,3.08853474,99.449,99.394,35.21339315]
[1770141035341,3.08853474,99.439,99.394,35.21339315]
[1770141035720,3.08853474,99.429,99.394,35.21339315]
[1770141036240,3.08853474,99.419,99.379,25.15616922]
[1770141036636,3.08853474,99.419,99.393,10.06097433]
[1770141037144,3.08853474,99.419,99.371,35.2215435]
[1770141038644,6.51499547,99.47,99.401,2.33980244]
[1770141038830,6.51499547,99.46,99.401,2.33980244]
[1770141039031,6.51499547,99.47,99.41,6.51499547]
[1770141039228,6.51499547,99.47,99.411,2.31513699]
[1770141039945,10.05136246,99.489,99.43,6.51499547]
[1770141040136,6.51499547,99.49,99.421,2.31513699]
[1770141040334,10.05028278,99.5,99.431,2.29075484]
[1770141040523,2.74791231,99.509,99.451,2.29075484]
[1770141040846,2.74791231,99.509,99.47,8.80575031]
[1770141041230,0.2,99.53,99.48,9.32619506]
[1770141041431,0.2,99.53,99.471,35.18613464]
[1770141041432,6.71499547,99.53,99.471,35.18613464]
[1770141041628,6.71499547,99.53,99.471,10.05318132]
[1770141041629,0.2,99.53,99.471,10.05318132]
[1770141041948,6.51499547,99.51,99.471,10.05318132]
[1770141042446,6.51499547,99.52,99.472,2.81119959]
[1770141042647,25.10607141,99.578,99.492,2.81119959]
[1770141042850,0.2,99.61,99.51,6.51499547]
[1770141043033,0.2,99.61,99.492,2.95336116]
[1770141043034,6.51499547,99.58,99.521,2.81119959]
[1770141043235,2.74791231,99.569,99.531,2.81119959]
[1770141043829,2.74791231,99.581,99.54,6.51499547]
[1770141044147,2.94791231,99.57,99.522,10.04802958]
[1770141044348,2.74791231,99.549,99.516,10.04859259]
[1770141044650,2.74791231,99.539,99.496,2.81119959]
[1770141045034,2.74791231,99.539,99.481,2.81119959]
[1770141045240,2.74791231,99.549,99.491,2.95336116]
[1770141045546,2.74791231,99.54,99.491,2.95336116]
[1770141045739,9.26290778,99.54,99.491,2.95336116]
[1770141045937,2.74791231,99.539,99.491,2.81119959]
[1770141046449,2.74791231,99.529,99.483,2.95336116]
[1770141047232,2.74791231,99.529,99.485,2.81119959]
[1770141048248,2.74791231,99.529,99.489,2.81119959]
[1770141048849,6.51499547,99.53,99.489,2.81119959]
[1770141049240,6.51499547,99.53,99.433,40.22792509]
[1770141049241,2.74791231,99.539,99.491,2.81119959]
[1770141050561,25.10872151,99.567,99.499,1.72456224]
[1770141050562,1.83004322,99.559,99.499,1.72456224]
[1770141050730,1.83004322,99.559,99.49,41.65307386]
[1770141050731,1.83004322,99.589,99.541,1.72456224]
[1770141051158,1.83004322,99.589,99.55,6.47365885]
[1770141051341,1.83004322,99.588,99.542,10.04601072]
[1770141051547,1.83004322,99.588,99.543,1.72456224]
[1770141051738,1.83004322,99.588,99.542,10.04601072]
[1770141051930,1.83004322,99.588,99.542,35.16103754]
[1770141052248,1.83004322,99.588,99.543,1.86672381]
[1770141052449,1.83004322,99.588,99.55,6.47365885]
[1770141052858,1.83004322,99.588,99.543,1.86672381]
[1770141053047,1.83004322,99.588,99.543,1.72456224]
[1770141053362,1.83004322,99.588,99.545,1.72456224]
[1770141053536,1.83004322,99.588,99.548,1.72456224]
[1770141053726,1.83004322,99.588,99.544,35.1603311]
[1770141053934,1.44886934,99.579,99.544,10.04580888]
[1770141054643,0.2,99.59,99.545,1.33567889]
[1770141054838,1.64886934,99.59,99.545,1.33567889]
[1770141055039,1.44886934,99.589,99.55,6.47365885]
[1770141055236,1.44886934,99.589,99.551,35.15785878]
[1770141055670,1.44886934,99.602,99.561,1.47784046]
[1770141055944,0.2,99.61,99.571,1.33567889]
[1770141056739,0.2,99.61,99.57,6.47365885]
[1770141056740,0.2,99.61,99.578,1.33567889]
[1770141057140,1.44886934,99.639,99.591,1.47784046]
[1770141057331,40.11148363,99.723,99.58,4.27527085]
[1770141057332,1e-08,99.64,99.612,1.47784046]
[1770141057535,0.2,99.67,99.63,6.47365885]
[1770141057736,10.02737473,99.727,99.644,1.47784046]
[1770141058049,6.47365885,99.69,99.644,1.47784046]
[1770141058250,6.47365885,99.69,99.644,1.33567889]
[1770141058660,4.27527085,99.724,99.644,1.33567889]
[1770141058842,6.47365885,99.7,99.644,1.33567889]
[1770141059239,40.10328823,99.743,99.64,6.47365885]
[1770141059240,6.47365885,99.72,99.665,1.33567889]
[1770141059438,6.47365885,99.72,99.66,6.47365885]
[1770141059439,0.7472741,99.759,99.669,1.33567889]
[1770141059638,0.7472741,99.729,99.676,0.14216157]
[1770141059846,0.7472741,99.729,99.677,1.33567889]
[1770141060242,0.57792435,99.742,99.681,1.47784046]
[1770141060668,0.57792435,99.739,99.681,1.47784046]
[1770141060842,7.0515832,99.75,99.699,1.33567889]
[1770141061037,0.2,99.77,99.701,1.47784046]
[1770141061261,1e-08,99.77,99.741,1.33567889]
[1770141061566,6.47365885,99.84,99.732,10.02687201]
[1770141061567,6.88417859,99.83,99.771,1.33567889]
[1770141061754,0.41051974,99.853,99.791,1.33567889]
[1770141061958,0.41051974,99.853,99.771,1.33567889]
[1770141062261,6.47365885,99.81,99.767,0.14216157]
[1770141062462,6.47365885,99.8,99.766,1.33567889]
[1770141062665,6.47365885,99.8,99.741,1.33567889]
[1770141062864,6.47365885,99.81,99.753,1.33567889]
[1770141063044,6.47365885,99.8,99.761,1.33567889]
[1770141063243,6.47365885,99.82,99.769,1.33567889]
[1770141063450,6.47365885,99.81,99.769,1.33567889]
[1770141063652,10.01813282,99.819,99.73,6.47365885]
[1770141063963,6.47365885,99.79,99.76,10.0240414]
[1770141064148,6.47365885,99.81,99.763,1.33567889]
[1770141064347,6.47365885,99.83,99.771,1.33567889]
[1770141064865,4.27527085,99.839,99.737,1.33567889]
[1770141065076,50.07912501,99.842,99.719,1.33567889]
[1770141065077,6.47365885,99.75,99.719,1.33567889]
[1770141065249,6.47365885,99.75,99.721,1.33567889]
[1770141065450,6.47365885,99.76,99.722,10.02787749]
[1770141065643,6.47365885,99.76,99.711,1.33567889]
[1770141065961,40.05616045,99.86,99.752,0.14216157]
[1770141066145,25.02953485,99.882,99.767,1.33567889]
[1770141066472,6.47365885,99.79,99.754,1.33567889]
[1770141066641,6.47365885,99.78,99.741,1.33567889]
[1770141066845,4.27527085,99.837,99.741,1.33567889]
[1770141066846,6.47365885,99.79,99.741,1.33567889]
[1770141067263,4.27527085,99.836,99.751,1.33567889]
[1770141067474,6.47365885,99.81,99.751,1.33567889]
[1770141067767,27.88,99.839,99.751,1.33567889]
[1770141067768,6.47365885,99.8,99.751,1.33567889]
[1770141068369,6.47365885,99.83,99.771,1.33567889]
[1770141069166,4.27527085,99.837,99.751,1.33567889]
[1770141069478,6.47365885,99.8,99.753,1.33567889]
[1770141069689,6.47365885,99.79,99.753,1.33567889]
[1770141069977,35.05749429,99.836,99.753,1.33567889]
[1770141070274,6.47365885,99.82,99.768,0.14216157]
[1770141070570,6.47365885,99.82,99.767,1.33567889]
[1770141070769,6.47365885,99.81,99.767,1.33567889]
[1770141070975,6.47365885,99.8,99.767,1.33567889]
[1770141071148,6.47365885,99.81,99.767,1.33567889]
[1770141071343,6.47365885,99.81,99.767,11.35895291]
[1770141071555,10.0169286,99.831,99.767,11.35895291]
[1770141071765,6.47365885,99.81,99.768,1.33567889]
[1770141071971,10.0169286,99.831,99.768,1.33567889]
[1770141072174,6.47365885,99.8,99.767,10.02327402]
[1770141072351,6.47365885,99.8,99.76,11.3596978]
[1770141072552,6.47365885,99.79,99.76,1.33567889]
[1770141072754,6.47365885,99.81,99.768,11.35893283]
[1770141072952,4.27527085,99.841,99.769,1.33567889]
[1770141072953,10.01622702,99.838,99.769,1.33567889]
[1770141073170,6.47365885,99.83,99.771,1.33567889]
[1770141073373,6.47365885,99.83,99.773,1.33567889]
[1770141073590,25.03582086,99.857,99.772,35.07998235]
[1770141073591,10.01566262,99.844,99.781,1.33567889]
[1770141073766,6.47365885,99.84,99.791,1.33567889]
[1770141074159,10.0141199,99.859,99.801,1.33567889]
[1770141074980,6.47365885,99.84,99.801,1.33567889]
[1770141075486,6.47365885,99.84,99.802,10.01983928]
[1770141075802,6.47365885,99.85,99.802,10.01983928]
[1770141076002,6.47365885,99.87,99.811,1.33567889]
[1770141076166,4.27527085,99.883,99.811,1.33567889]
[1770141076592,6.47365885,99.86,99.811,1.33567889]
[1770141077472,6.47365885,99.87,99.813,1.33567889]
[1770141077785,16.48668557,99.87,99.813,1.33567889]
[1770141078384,6.47365885,99.84,99.786,1.33567889]
[1770141078680,6.47365885,99.81,99.76,1.33567889]
[1770141078868,27.84,99.822,99.76,1.33567889]
[1770141079068,6.47365885,99.81,99.76,1.33567889]
[1770141079381,6.47365885,99.82,99.764,1.33567889]
[1770141079565,4.27527085,99.841,99.751,10.02495859]
[1770141079566,6.47365885,99.79,99.751,10.02495859]
[1770141079768,10.01887134,99.812,99.747,1.33567889]
[1770141080094,6.47365885,99.8,99.759,10.0240584]
[1770141080265,27.84,99.813,99.764,35.08273743]
[1770141080472,27.84,99.813,99.765,1.33567889]
[1770141080670,10.01712929,99.829,99.771,0.55412345]
[1770141080973,6.47365885,99.82,99.771,0.55412345]
[1770141081286,10.01712929,99.829,99.771,0.55412345]
[1770141081287,6.47365885,99.81,99.771,0.55412345]
[1770141081464,6.47365885,99.81,99.764,35.08273743]
[1770141081465,6.47365885,99.8,99.764,10.02359787]
[1770141081790,10.02014048,99.799,99.765,0.55412345]
[1770141081976,6.47365885,99.79,99.753,0.55412345]
[1770141082178,6.47365885,99.79,99.758,10.02422551]
[1770141082694,6.47365885,99.77,99.725,10.0275305]
[1770141082876,6.47365885,99.75,99.725,10.0275305]
[1770141083073,27.84,99.789,99.726,0.55412345]
[1770141083277,6.47365885,99.78,99.726,0.55412345]
[1770141083599,10.02114461,99.789,99.733,0.55412345]
[1770141083785,6.47365885,99.77,99.733,0.55412345]
[1770141084491,6.47365885,99.78,99.733,0.55412345]
[1770141084692,6.47365885,99.79,99.733,0.55412345]
[1770141084890,40.04861985,99.879,99.735,4.27527085]
[1770141085074,6.47365885,99.81,99.751,0.55412345]
[1770141085270,6.47365885,99.8,99.751,0.55412345]
[1770141085693,10.01928801,99.808,99.753,0.55412345]
[1770141085985,6.47365885,99.81,99.753,0.55412345]
[1770141086599,6.47365885,99.81,99.752,35.08701579]
[1770141086600,6.47365885,99.81,99.759,0.55412345]
[1770141086894,6.47365885,99.82,99.761,0.55412345]
[1770141087674,6.47365885,99.82,99.771,0.55412345]
[1770141087874,6.47365885,99.83,99.771,0.55412345]
[1770141088085,27.84,99.841,99.771,0.55412345]
[1770141088282,40.03424733,99.915,99.771,0.55412345]
[1770141088283,10.01101211,99.89,99.801,0.55412345]
[1770141088474,6.47365885,99.85,99.811,0.55412345]
[1770141088871,6.47365885,99.84,99.811,0.55412345]
[1770141089077,6.47365885,99.84,99.781,0.55412345]
[1770141089380,6.47365885,99.83,99.781,0.55412345]
[1770141089781,6.47365885,99.83,99.783,0.55412345]
[1770141089987,6.47365885,99.84,99.783,0.55412345]
[1770141090179,6.47365885,99.83,99.783,0.55412345]
[1770141090599,6.47365885,99.84,99.783,0.55412345]
[1770141091176,6.47365885,99.82,99.783,0.55412345]
[1770141091495,6.47365885,99.83,99.783,0.55412345]
[1770141091695,6.47365885,99.82,99.783,0.55412345]
[1770141091893,6.47365885,99.81,99.772,0.55412345]
[1770141092195,27.84,99.829,99.785,0.55412345]
[1770141092578,37.85712929,99.829,99.785,0.55412345]
[1770141092772,27.84,99.829,99.785,0.55412345]
[1770141093182,6.47365885,99.82,99.778,10.02224756]
[1770141093590,6.47365885,99.81,99.775,0.55412345]
[1770141093778,35.06030371,99.828,99.775,0.55412345]
[1770141093981,35.06030371,99.828,99.743,25.06421285]
[1770141093982,6.47365885,99.79,99.731,0.55412345]
[1770141094180,4.27527085,99.825,99.747,0.55412345]
[1770141094397,6.47365885,99.78,99.747,0.55412345]
[1770141094580,6.47365885,99.79,99.747,0.55412345]
[1770141094778,6.47365885,99.79,99.754,10.02457511]
[1770141095303,6.47365885,99.78,99.742,10.02577534]
[1770141095499,6.47365885,99.79,99.747,10.02529479]
[1770141095802,6.47365885,99.79,99.748,10.57938711]
[1770141096097,6.47365885,99.8,99.749,0.55412345]
[1770141097503,6.47365885,99.78,99.749,0.55412345]
[1770141097798,6.47365885,99.78,99.73,6.47365885]
[1770141097799,6.47365885,99.79,99.74,0.55412345]
[1770141098100,10.02057475,99.795,99.741,0.55412345]
[1770141098284,6.47365885,99.79,99.741,0.55412345]
[1770141098686,6.47365885,99.77,99.732,10.02687201]
[1770141098996,6.47365885,99.77,99.725,0.55412345]
[1770141098997,6.47365885,99.76,99.727,10.58144669]
[1770141099194,6.47365885,99.76,99.728,0.55412345]
[1770141099399,6.47365885,99.75,99.716,10.02841701]
[1770141099603,6.47365885,99.74,99.702,0.55412345]
[1770141099783,6.47365885,99.74,99.702,10.58397922]
[1770141099984,6.47365885,99.76,99.703,0.55412345]
[1770141100394,10.02415822,99.759,99.703,0.55412345]
[1770141101208,6.47365885,99.79,99.731,0.55412345]
[1770141101384,6.47365885,99.82,99.76,6.47365885]
[1770141101587,10.01652726,99.835,99.771,0.55412345]
[1770141101778,6.47365885,99.85,99.791,0.55412345]
[1770141101981,6.47365885,99.87,99.811,0.55412345]
[1770141102192,6.47365885,99.85,99.811,0.55412345]
[1770141102511,27.84,99.869,99.811,0.55412345]
[1770141102894,6.47365885,99.86,99.811,0.55412345]
[1770141103620,27.84,99.869,99.811,0.55412345]
[1770141103621,6.47365885,99.85,99.811,0.55412345]
[1770141103917,0.31026169,99.848,99.772,0.14216157]
[1770141104126,27.84,99.847,99.791,10.02094377]
[1770141104615,6.47365885,99.83,99.791,10.02094377]
[1770141104820,0.31026169,99.799,99.74,6.47365885]
[1770141104989,0.31026169,99.799,99.688,40.12497066]
[1770141104990,6.47365885,99.78,99.738,10.02622328]
[1770141105715,6.47365885,99.79,99.738,10.47925425]
[1770141106014,10.02114461,99.789,99.738,10.47925425]
[1770141106213,0.31026169,99.769,99.709,0.45303097]
[1770141106406,6.47365885,99.77,99.656,40.13770234]
[1770141106407,6.47365885,99.74,99.7,10.03002919]
[1770141106607,6.47365885,99.73,99.697,0.45303097]
[1770141106811,6.47365885,99.72,99.688,10.03120751]
[1770141107317,6.47365885,99.72,99.688,0.45303097]
[1770141107491,0.31026169,99.724,99.659,0.45303097]
[1770141107690,6.47365885,99.71,99.659,0.45303097]
[1770141107916,6.47365885,99.69,99.665,10.03353831]
[1770141108098,6.47365885,99.7,99.665,10.03353831]
[1770141108301,6.47365885,99.7,99.659,0.45303097]
[1770141108302,6.47365885,99.71,99.671,10.03300859]
[1770141108803,6.47365885,99.69,99.654,10.03466083]
[1770141109105,6.47365885,99.69,99.652,10.03485552]
[1770141110219,94.51039193,99.74,99.65,0.2]
[1770141110220,0.11026169,99.679,99.65,0.2]
[1770141110525,6.47365885,99.66,99.618,0.45303097]
[1770141110704,6.47365885,99.64,99.603,0.5]
[1770141111116,27.84,99.664,99.621,0.5]
[1770141111430,6.47365885,99.67,99.621,0.5]
[1770141111610,27.84,99.681,99.621,0.5]
[1770141111928,6.47365885,99.67,99.621,0.5]
[1770141112231,6.47365885,99.67,99.556,40.17825004]
[1770141112232,6.47365885,99.64,99.606,0.5]
[1770141112423,6.46474573,99.62,99.577,0.5]
[1770141112607,6.46474573,99.62,99.579,0.5]
[1770141112799,6.46474573,99.62,99.583,0.5]
[1770141113417,6.46474573,99.66,99.608,0.5]
[1770141113628,6.46474573,99.65,99.59,0.5]
[1770141113811,6.46474573,99.62,99.59,0.5]
[1770141114207,6.46474573,99.63,99.589,10.0412361]
[1770141114413,10.03723815,99.629,99.583,0.5]
[1770141115013,10.03723815,99.629,99.589,10.04119528]
[1770141115528,10.03723815,99.629,99.583,10.54187428]
[1770141115725,10.03723815,99.629,99.583,0.5]
[1770141116037,10.03723815,99.629,99.57,6.46474573]
[1770141116197,6.46474573,99.62,99.574,10.04277938]
[1770141116401,10.03797703,99.622,99.575,0.5]
[1770141116619,37.89726743,99.629,99.575,0.5]
[1770141116806,37.89726743,99.629,99.581,0.5]
[1770141117202,6.46474573,99.61,99.574,10.04277938]
[1770141117521,37.89726743,99.629,99.581,0.5]
[1770141117717,6.46474573,99.62,99.51,0.2]
[1770141117921,6.46474573,99.55,99.482,10.05204694]
[1770141118119,6.46474573,99.5,99.442,10.05611311]
[1770141118426,6.46474573,99.5,99.409,40.23758016]
[1770141118427,4.27527085,99.488,99.419,10.0584212]
[1770141118721,4.27527085,99.488,99.377,40.25072234]
[1770141118722,6.46474573,99.43,99.36,6.46474573]
[1770141118914,6.46474573,99.43,99.356,10.06481742]
[1770141118915,6.46474573,99.44,99.371,0.5]
[1770141119097,195.98383885,99.498,99.401,0.5]
[1770141119098,6.46474573,99.46,99.401,0.5]
[1770141119300,35.17658645,99.498,99.411,0.5]
[1770141119520,35.17658645,99.498,99.441,0.5]
[1770141119917,35.17658645,99.498,99.421,0.5]
[1770141120124,6.46474573,99.47,99.421,0.5]
[1770141120413,6.46474573,99.47,99.423,0.5]
[1770141120615,4.27527085,99.497,99.423,0.5]
[1770141120801,6.46474573,99.48,99.423,0.5]
[1770141121002,10.04974624,99.505,99.431,0.5]
[1770141121201,6.46474573,99.48,99.431,0.5]
[1770141121736,6.46474573,99.49,99.431,0.5]
[1770141122226,6.46474573,99.47,99.433,0.5]
[1770141122427,6.46474573,99.49,99.433,0.5]
[1770141122636,6.46474573,99.5,99.441,0.5]
[1770141123010,6.46474573,99.49,99.441,0.5]
[1770141123933,155.77889445,99.5,99.399,0.5]
[1770141124107,6.46474573,99.42,99.402,0.5]
[1770141124426,6.46474573,99.44,99.404,0.5]
[1770141124635,6.46474573,99.43,99.404,0.5]
[1770141125038,6.46474573,99.45,99.404,0.5]
[1770141125409,27.9,99.455,99.404,0.5]
[1770141125717,27.9,99.455,99.411,0.5]
[1770141126233,27.9,99.455,99.413,0.5]
[1770141127134,42.75650331,99.454,99.413,0.5]
[1770141128439,42.75650331,99.454,99.415,0.5]
[1770141129222,40.75650331,99.454,99.42,6.46474573]
[1770141129419,0.45463622,99.489,99.43,6.46474573]
[1770141130036,0.5,99.469,99.414,35.20630897]
[1770141130336,34.20520265,99.495,99.43,6.46474573]
[1770141130531,34.20520265,99.495,99.44,6.46474573]
[1770141130532,0.5,99.494,99.44,6.46474573]
[1770141130734,0.5,99.489,99.43,6.46474573]
[1770141130931,0.5,99.479,99.421,35.20383017]
[1770141131128,6.46474573,99.47,99.421,35.20383017]
[1770141131432,0.5,99.479,99.421,35.20383017]
[1770141131844,0.5,99.492,99.44,6.46474573]
[1770141132643,0.5,99.492,99.45,6.46474573]
[1770141132811,0.5,99.491,99.362,50.62265186]
[1770141133016,0.5,99.46,99.388,40.24620017]
[1770141133318,0.5,99.479,99.441,10.05621423]
[1770141134146,13.22156232,99.49,99.441,35.19674982]
[1770141134430,13.22156232,99.49,99.46,6.46474573]
[1770141134634,13.22156232,99.49,99.461,35.18967232]
[1770141135241,13.22156232,99.49,99.461,10.05419209]
[1770141135415,0.5,99.489,99.448,25.13856108]
[1770141135615,0.5,99.489,99.436,25.14178429]
[1770141135839,13.22156232,99.49,99.461,10.05419209]
[1770141136119,27.92,99.516,99.47,6.46474573]
[1770141136308,0.5,99.515,99.461,35.18967232]
[1770141136510,0.5,99.515,99.47,6.46474573]
[1770141136739,0.5,99.515,99.471,35.18613464]
[1770141137425,0.5,99.53,99.49,6.46474573]
[1770141138014,32.19527085,99.553,99.471,35.18613464]
[1770141138015,0.5,99.528,99.48,6.46474573]
[1770141138244,0.5,99.528,99.471,10.05318132]
[1770141138614,0.5,99.528,99.48,6.46474573]
[1770141138815,0.5,99.526,99.48,6.46474573]
[1770141139037,0.5,99.54,99.49,6.46474573]
[1770141139339,0.5,99.552,99.5,6.46474573]
[1770141139524,0.5,99.549,99.5,6.46474573]
[1770141139721,0.5,99.549,99.49,6.46474573]
[1770141140033,0.5,99.549,99.5,6.46474573]
[1770141140921,0.5,99.539,99.489,10.05134925]
[1770141141645,0.5,99.529,99.489,10.05134925]
[1770141142314,0.5,99.529,99.474,25.13196255]
[1770141142516,0.5,99.519,99.461,25.13539024]
[1770141142732,0.5,99.519,99.47,6.46474573]
[1770141142936,0.5,99.509,99.471,10.05318132]
[1770141143634,0.5,99.523,99.48,6.46474573]
[1770141143841,0.5,99.521,99.471,35.18613464]
[1770141144825,0.5,99.517,99.461,10.05419209]
[1770141145819,27.92,99.535,99.48,6.46474573]
[1770141145820,0.5,99.531,99.48,6.46474573]
[1770141146026,0.5,99.53,99.48,6.46474573]
[1770141146241,0.5,99.53,99.49,6.46474573]
[1770141146418,0.5,99.53,99.5,6.46474573]
[1770141146733,0.5,99.53,99.48,6.46474573]
[1770141147039,10.04681817,99.534,99.48,6.46474573]
[1770141147040,0.5,99.528,99.481,35.18259767]
[1770141147742,0.5,99.528,99.481,10.05217076]
[1770141148440,0.5,99.519,99.439,4.27527085]
[1770141148633,6.46474573,99.52,99.443,10.05592712]
[1770141148634,0.5,99.469,99.443,10.05592712]
[1770141148820,0.5,99.459,99.38,40.24945747]
[1770141149021,0.5,99.449,99.362,40.25652789]
[1770141149322,0.5,99.449,99.37,4.27527085]
[1770141149529,0.5,99.449,99.4,6.46474573]
[1770141149932,0.5,99.449,99.41,6.46474573]
[1770141150333,0.5,99.429,99.37,6.46474573]
[1770141150931,0.5,99.428,99.371,10.06329814]
[1770141151347,0.5,99.428,99.38,6.46474573]
[1770141151650,0.5,99.428,99.371,35.2215435]
[1770141151945,0.5,99.419,99.371,35.2215435]
[1770141152144,0.5,99.409,99.363,10.06406673]
[1770141152347,0.5,99.399,99.35,6.46474573]
[1770141152845,0.5,99.399,99.371,10.06329814]
[1770141153048,0.5,99.399,99.351,10.06532395]
[1770141153235,0.5,99.399,99.351,35.22863383]
[1770141153437,0.5,99.399,99.36,6.46474573]
[1770141153633,0.5,99.399,99.351,35.22863383]
[1770141153829,0.5,99.399,99.36,6.46474573]
[1770141154049,0.5,99.399,99.351,35.22863383]